lending/lending_fUSD_20240509
["ID","MTS","AMOUNT","RATE_DAILY","PERIOD"]
[326724942,1715284275426,-305.00976037,0.00041369,31]
[326724943,1715284275435,-500.0,0.00041369,31]
[326724944,1715284275444,-158.440197,0.00041369,14]
[326724945,1715284275453,-500.0,0.00041369,31]
[326724946,1715284275462,-1727.6,0.00041369,31]
[326724947,1715284275474,-500.0,0.00041369,31]
[326724948,1715284275483,-702.33,0.00041369,31]
[326724949,1715284275493,-500.0,0.00041369,31]
[326724950,1715284275502,-500.0,0.00041369,31]
[326724951,1715284275512,-5109.4,0.00041369,31]
[326724952,1715284275523,-224.14699033,0.00041399,7]
[326724953,1715284275534,-1053000.0,0.000414,10]
[326724954,1715284275544,-151.0,0.000414,14]
[326724955,1715284275553,-151.0,0.000414,14]
[326724956,1715284275564,-151.0,0.000414,14]
[326724957,1715284275573,-151.0,0.000414,14]
[326724958,1715284275583,-151.0,0.000414,14]
[326724959,1715284275592,-151.0,0.000414,14]
[326724960,1715284275601,-223.45232,0.000414,14]
[326724961,1715284275612,-188.170118,0.000414,14]
[326724962,1715284275625,-151.0,0.000414,14]
[326724963,1715284275638,-445.761856,0.000414,14]
[326724964,1715284275647,-445.761856,0.000414,14]
[326724965,1715284275657,-161.264947,0.000414,14]
[326724966,1715284275666,-151.0,0.000414,14]
[326724967,1715284275675,-161.264947,0.000414,14]
[326724968,1715284275685,-161.035085,0.000414,14]
[326724969,1715284275694,-161.035085,0.000414,14]
[326724970,1715284275704,-450.995247,0.000414,14]
[326724971,1715284275713,-450.995247,0.000414,14]
[326724972,1715284275723,-170.367418,0.000414,14]
[326724973,1715284275732,-151.0,0.000414,14]
[326724974,1715284275742,-187.759166,0.000414,14]
[326724975,1715284275751,-187.759166,0.000414,14]
[326724976,1715284275761,-151.0,0.000414,14]
[326724977,1715284275771,-151.0,0.000414,14]
[326724978,1715284275780,-151.0,0.000414,14]
[326724979,1715284275789,-800.981742,0.000414,14]
[326724980,1715284275799,-800.981742,0.000414,14]
[326724981,1715284275809,-151.0,0.000414,14]
[326724982,1715284275818,-460.88,0.000414,7]
[326724983,1715284275828,-224.14699033,0.00041449,7]
[326724984,1715284275837,-80000.0,0.0004145,14]
[326724985,1715284275847,-70000.0,0.0004146,7]
[326724986,1715284275856,-260.0,0.000415,14]
[326724987,1715284275866,-2110.0,0.000415,15]
[326724988,1715284275875,-680.92,0.00041505,30]
[326724989,1715284275885,-680.92,0.00041505,30]
[326724990,1715284275894,-1000.0,0.00041547,32]
[326724991,1715284275904,-285555.25021806,0.0004155,5]
[326724992,1715284275914,-27293.99997446,0.0004155,5]
[326724993,1715284275927,-1000.0,0.00041553,30]
[326724994,1715284275937,-535.77000806,0.0004158,120]
[326724995,1715284275947,-239.78,0.000416,7]
[326724996,1715284275956,-224.14699033,0.00041642,7]
[326724997,1715284275966,-500.0,0.00041643,32]
[326724998,1715284275975,-500.0,0.00041643,32]
[326724999,1715284275985,-500.0,0.00041643,32]
[326725000,1715284275995,-500.0,0.00041643,32]
[326725001,1715284276007,-500.0,0.00041643,32]
[326725002,1715284276017,-500.0,0.00041643,32]
[326725003,1715284276027,-500.0,0.00041643,32]
[326725004,1715284276036,-500.0,0.00041643,32]
[326725005,1715284276045,-500.0,0.00041643,32]
[326725006,1715284276055,-502.93319777,0.00041643,32]
[326725007,1715284276065,-503.11309992,0.00041643,32]
[326725008,1715284276074,-500.0,0.00041643,32]
[326725009,1715284276084,-500.0,0.00041643,32]
[326725010,1715284276094,-500.0,0.00041643,32]
[326725011,1715284276103,-500.0,0.00041643,32]
[326725012,1715284276113,-525.56962912,0.00041643,32]
[326725013,1715284276122,-500.0,0.00041643,32]
[326725014,1715284276132,-406.86404798,0.00041643,32]
[326725015,1715284276142,-500.0,0.00041643,32]
[326725016,1715284276151,-503.89,0.00041643,32]
[326725017,1715284276161,-500.0,0.00041643,32]
[326725018,1715284276171,-500.0,0.00041643,32]
[326725019,1715284276180,-500.0,0.00041643,32]
[326725020,1715284276190,-500.0,0.00041643,32]
[326725021,1715284276200,-500.0,0.00041643,32]
[326725022,1715284276210,-500.0,0.00041643,32]
[326725023,1715284276220,-500.0,0.00041643,32]
[326725024,1715284276229,-158.81,0.00041643,32]
[326725025,1715284276239,-993.71,0.00041643,32]
[326725026,1715284276248,-500.0,0.00041643,32]
[326725027,1715284276258,-500.0,0.00041643,32]
[326725028,1715284276268,-500.0,0.00041643,32]
[326725029,1715284276278,-348.75112324,0.00041643,32]
[326725030,1715284276287,-500.0,0.00041643,32]
[326725031,1715284276297,-500.0,0.00041643,32]
[326725032,1715284276306,-647.96,0.00041643,32]
[326725033,1715284276316,-500.0,0.00041643,32]
[326725034,1715284276325,-645.32280434,0.00041643,32]
[326725035,1715284276335,-500.0,0.00041643,32]
[326725036,1715284276344,-500.0,0.00041643,32]
[326725037,1715284276354,-500.0,0.00041643,32]
[326725038,1715284276364,-500.0,0.00041643,32]
[326725039,1715284276374,-500.0,0.00041643,32]
[326725040,1715284276384,-500.0,0.00041643,32]
[326725041,1715284276394,-500.0,0.00041643,32]
[326725042,1715284276404,-500.0,0.00041643,32]
[326725043,1715284276415,-500.0,0.00041643,32]
[326725044,1715284276424,-500.0,0.00041643,32]
[326725045,1715284276434,-500.0,0.00041643,32]
[326725046,1715284276444,-500.0,0.00041643,32]
[326725047,1715284276454,-500.0,0.00041643,32]
[326725048,1715284276464,-640.54,0.00041643,32]
[326725049,1715284276474,-500.0,0.00041643,32]
[326725050,1715284276483,-846.17,0.00041643,32]
[326725051,1715284276493,-500.0,0.00041643,32]
[326725052,1715284276503,-500.0,0.00041643,32]
[326725053,1715284276512,-500.0,0.00041643,32]
[326725054,1715284276522,-500.0,0.00041643,32]
[326725055,1715284276531,-500.0,0.00041643,32]
[326725056,1715284276541,-500.0,0.00041643,2]
[326725057,1715284276552,-518.84617213,0.00041643,32]
[326725058,1715284276561,-507.63615086,0.00041643,32]
[326725059,1715284276571,-500.0,0.00041643,32]
[326725060,1715284276581,-556.18,0.00041643,32]
[326725061,1715284276591,-517.99,0.00041643,32]
[326725062,1715284276600,-537.98699436,0.00041643,32]
[326725063,1715284276610,-701.35,0.00041643,32]
[326725064,1715284276620,-586.56811019,0.00041643,32]
[326725065,1715284276631,-538.31,0.00041643,32]
[326725066,1715284276641,-500.0,0.00041643,32]
[326725067,1715284276651,-500.0,0.00041643,32]
[326725068,1715284276660,-500.0,0.00041643,32]
[326725069,1715284276670,-563.35898067,0.00041643,32]
[326725070,1715284276680,-500.0,0.00041643,32]
[326725071,1715284276689,-500.0,0.00041643,32]
[326725072,1715284276699,-500.0,0.00041643,32]
[326725073,1715284276709,-500.0,0.00041643,32]
[326725074,1715284276718,-500.0,0.00041643,32]
[326725075,1715284276728,-500.0,0.00041643,32]
[326725076,1715284276737,-500.0,0.00041643,32]
[326725077,1715284276747,-781.17,0.00041643,32]
[326725078,1715284276756,-500.0,0.00041643,32]
[326725079,1715284276766,-500.0,0.00041643,32]
[326725080,1715284276776,-500.0,0.00041643,32]
[326725081,1715284276786,-500.0,0.00041643,32]
[326725082,1715284276795,-500.19,0.00041643,32]
[326725083,1715284276806,-500.0,0.00041643,32]
[326725084,1715284276815,-522.57460161,0.00041643,32]
[326725085,1715284276825,-500.0,0.00041643,32]
[326725086,1715284276836,-500.0,0.00041643,32]
[326725087,1715284276845,-500.0,0.00041643,32]
[326725088,1715284276855,-500.0,0.00041643,32]
[326725089,1715284276865,-500.0,0.00041643,32]
[326725090,1715284276874,-500.0,0.00041643,32]
[326725091,1715284276896,-758.88,0.00041643,32]
[326725092,1715284276908,-500.0,0.00041643,32]
[326725093,1715284276922,-750.7,0.00041643,32]
[326725094,1715284276932,-500.0,0.00041643,32]
[326725095,1715284276942,-500.0,0.00041643,32]
[326725096,1715284276952,-500.0,0.00041643,32]
[326725097,1715284276964,-587.25,0.00041643,32]
[326725098,1715284276974,-573.74,0.00041643,32]
[326725099,1715284276985,-500.0,0.00041643,32]
[326725100,1715284276998,-571.6,0.00041643,32]
[326725101,1715284277010,-494.60311743,0.00041643,32]
[326725102,1715284277021,-500.0,0.00041643,32]
[326725103,1715284277032,-500.0,0.00041643,32]
[326725104,1715284277043,-500.0,0.00041643,32]
[326725105,1715284277054,-579.52839167,0.00041643,32]
[326725106,1715284277064,-500.0,0.00041643,32]
[326725107,1715284277074,-500.0,0.00041643,32]
[326725108,1715284277086,-507.19471156,0.00041643,32]
[326725109,1715284277096,-500.0,0.00041643,32]
[326725110,1715284277107,-500.0,0.00041643,32]
[326725111,1715284277117,-500.0,0.00041643,32]
[326725112,1715284277127,-500.0,0.00041643,32]
[326725113,1715284277138,-510.3,0.00041643,32]
[326725114,1715284277148,-500.0,0.00041643,32]
[326725115,1715284277158,-512.21873453,0.00041643,32]
[326725116,1715284277169,-500.0,0.00041643,32]
[326725117,1715284277179,-411.43214601,0.00041643,32]
[326725118,1715284277189,-500.0,0.00041643,32]
[326725119,1715284277200,-500.0,0.00041643,32]
[326725120,1715284277210,-500.0,0.00041643,32]
[326725121,1715284277220,-500.0,0.00041643,32]
[326725122,1715284277230,-576.38,0.00041643,32]
[326725123,1715284277241,-566.0,0.00041643,32]
[326725124,1715284277251,-360.64344081,0.00041643,32]
[326725125,1715284277261,-500.0,0.00041643,32]
[326725126,1715284277271,-500.0,0.00041643,32]
[326725127,1715284277281,-500.0,0.00041643,32]
[326725128,1715284277291,-570.74,0.00041643,32]
[326725129,1715284277301,-562.66,0.00041643,32]
[326725130,1715284277311,-500.0,0.00041643,32]
[326725131,1715284277322,-500.0,0.00041643,32]
[326725132,1715284277331,-500.0,0.00041643,32]
[326725133,1715284277341,-500.0,0.00041643,32]
[326725134,1715284277352,-1193.11,0.00041643,32]
[326725135,1715284277361,-500.0,0.00041643,32]
[326725136,1715284277372,-500.0,0.00041643,32]
[326725137,1715284277382,-500.0,0.00041643,32]
[326725138,1715284277392,-200.0,0.00041643,32]
[326725139,1715284277402,-500.0,0.00041643,32]
[326725140,1715284277412,-500.0,0.00041643,32]
[326725141,1715284277422,-500.0,0.00041643,32]
[326725142,1715284277434,-500.0,0.00041643,32]
[326725143,1715284277444,-500.0,0.00041643,32]
[326725144,1715284277454,-827.66,0.00041643,32]
[326725145,1715284277464,-500.0,0.00041643,32]
[326725146,1715284277474,-1233.59,0.00041643,32]
[326725147,1715284277484,-500.0,0.00041643,32]
[326725148,1715284277500,-500.0,0.00041643,32]
[326725149,1715284277511,-500.0,0.00041643,32]
[326725150,1715284277522,-500.0,0.00041643,32]
[326725151,1715284277533,-500.0,0.00041643,32]
[326725152,1715284277544,-500.0,0.00041643,32]
[326725153,1715284277555,-500.0,0.00041643,32]
[326725154,1715284277566,-500.0,0.00041643,32]
[326725155,1715284277578,-500.0,0.00041643,32]
[326725156,1715284277588,-500.0,0.00041643,32]
[326725157,1715284277599,-389.2659138,0.00041643,32]
[326725158,1715284277610,-500.0,0.00041643,32]
[326725159,1715284277621,-518.15006801,0.00041643,32]
[326725160,1715284277631,-500.0,0.00041643,32]
[326725161,1715284277642,-583.76725848,0.00041643,32]
[326725162,1715284277653,-500.0,0.00041643,32]
[326725163,1715284277663,-500.0,0.00041643,32]
[326725164,1715284277674,-500.0,0.00041643,32]
[326725165,1715284277684,-500.0,0.00041643,32]
[326725166,1715284277695,-520.62037155,0.00041643,32]
[326725167,1715284277705,-512.44639562,0.00041643,32]
[326725168,1715284277715,-500.0,0.00041643,32]
[326725169,1715284277726,-645.24,0.00041643,32]
[326725170,1715284277737,-500.0,0.00041643,32]
[326725171,1715284277747,-500.0,0.00041643,32]
[326725172,1715284277758,-500.0,0.00041643,32]
[326725173,1715284277768,-500.0,0.00041643,32]
[326725174,1715284277778,-530.13965922,0.00041643,32]
[326725175,1715284277788,-500.0,0.00041643,32]
[326725176,1715284277798,-804.65,0.00041643,32]
[326725177,1715284277809,-500.0,0.00041643,32]
[326725178,1715284277820,-500.0,0.00041643,32]
[326725179,1715284277832,-500.0,0.00041643,32]
[326725180,1715284277842,-500.0,0.00041643,32]
[326725181,1715284277853,-500.0,0.00041643,32]
[326725182,1715284277864,-505.54497262,0.00041643,32]
[326725183,1715284277875,-500.0,0.00041643,32]
[326725184,1715284277886,-500.0,0.00041643,30]
[326725185,1715284277897,-500.0,0.00041643,32]
[326725186,1715284277909,-500.0,0.00041643,32]
[326725187,1715284278168,-500.0,0.00041643,32]
[326725188,1715284278179,-500.0,0.00041643,32]
[326725189,1715284278188,-500.0,0.00041643,32]
[326725190,1715284278198,-500.0,0.00041643,32]
[326725191,1715284278207,-500.0,0.00041643,32]
[326725192,1715284278217,-500.0,0.00041643,32]
[326725193,1715284278226,-500.0,0.00041643,32]
[326725194,1715284278235,-583.32,0.00041643,32]
[326725195,1715284278244,-500.0,0.00041643,32]
[326725196,1715284278254,-737.89,0.00041643,32]
[326725197,1715284278263,-500.0,0.00041643,32]
[326725198,1715284278272,-493.22796781,0.00041643,32]
[326725199,1715284278281,-500.0,0.00041643,32]
[326725200,1715284278291,-500.0,0.00041643,32]
[326725201,1715284278300,-500.0,0.00041643,32]
[326725202,1715284278309,-500.0,0.00041643,32]
[326725203,1715284278318,-750.0,0.00041643,30]
[326725204,1715284278328,-514.70907645,0.00041643,32]
[326725205,1715284278337,-500.0,0.00041643,32]
[326725206,1715284278346,-500.0,0.00041643,32]
[326725207,1715284278355,-500.0,0.00041643,32]
[326725208,1715284278364,-599.9977915,0.00041643,32]
[326725209,1715284278374,-500.0,0.00041643,32]
[326725210,1715284278384,-500.0,0.00041643,32]
[326725211,1715284278394,-500.0,0.00041643,32]
[326725212,1715284278403,-500.0,0.00041643,32]
[326725213,1715284278412,-500.0,0.00041643,32]
[326725214,1715284278421,-337.42413615,0.00041643,32]
[326725215,1715284278431,-768.17,0.00041643,32]
[326725216,1715284278439,-500.0,0.00041643,32]
[326725217,1715284278448,-536.35,0.00041643,32]
[326725218,1715284278457,-565.61,0.00041643,32]
[326725219,1715284278466,-500.0,0.00041643,32]
[326725220,1715284278475,-500.0,0.00041643,32]
[326725221,1715284278484,-636.6,0.00041643,32]
[326725222,1715284278494,-500.0,0.00041643,32]
[326725223,1715284278504,-813.38,0.00041643,32]
[326725224,1715284278513,-500.0,0.00041643,32]
[326725225,1715284278522,-500.0,0.00041643,32]
[326725226,1715284278531,-521.62028173,0.00041643,32]
[326725227,1715284278540,-500.0,0.00041643,32]
[326725228,1715284278549,-500.0,0.00041643,32]
[326725229,1715284278558,-513.09997383,0.00041643,32]
[326725230,1715284278568,-553.1,0.00041643,32]
[326725231,1715284278577,-500.0,0.00041643,32]
[326725232,1715284278587,-955.55,0.00041643,32]
[326725233,1715284278596,-500.0,0.00041643,32]
[326725234,1715284278605,-500.0,0.00041643,32]
[326725235,1715284278614,-528.20770664,0.00041643,32]
[326725236,1715284278623,-500.0,0.00041643,32]
[326725237,1715284278633,-1189.59,0.00041643,32]
[326725238,1715284278642,-500.0,0.00041643,32]
[326725239,1715284278651,-516.29675534,0.00041643,32]
[326725240,1715284278661,-550.55,0.00041643,32]
[326725241,1715284278670,-500.0,0.00041643,32]
[326725242,1715284278681,-500.0,0.00041643,32]
[326725243,1715284278690,-502.72595474,0.00041643,32]
[326725244,1715284278699,-500.0,0.00041643,32]
[326725245,1715284278708,-500.0,0.00041643,32]
[326725246,1715284278718,-500.0,0.00041643,32]
[326725247,1715284278727,-500.0,0.00041643,32]
[326725248,1715284278737,-500.0,0.00041643,32]
[326725249,1715284278746,-1010.32,0.00041643,32]
[326725250,1715284278755,-1044.62,0.00041643,32]
[326725251,1715284278765,-500.0,0.00041643,32]
[326725252,1715284278774,-1054.43,0.00041643,32]
[326725253,1715284278783,-500.0,0.00041643,32]
[326725254,1715284278792,-500.0,0.00041643,32]
[326725255,1715284278801,-500.0,0.00041643,32]
[326725256,1715284278810,-500.0,0.00041643,32]
[326725257,1715284278820,-500.0,0.00041643,32]
[326725258,1715284278828,-510.92,0.00041643,32]
[326725259,1715284278838,-500.0,0.00041643,32]
[326725260,1715284278847,-500.0,0.00041643,32]
[326725261,1715284278856,-500.0,0.00041643,32]
[326725262,1715284278865,-500.0,0.00041643,32]
[326725263,1715284278874,-500.0,0.00041643,32]
[326725264,1715284278883,-1160.86,0.00041643,32]
[326725265,1715284278893,-500.0,0.00041643,32]
[326725266,1715284278903,-500.0,0.00041643,32]
[326725267,1715284278914,-500.0,0.00041643,2]
[326725268,1715284278926,-500.0,0.00041643,32]
[326725269,1715284278935,-509.39,0.00041643,32]
[326725270,1715284278956,-500.0,0.00041643,32]
[326725271,1715284278967,-193.13927625,0.00041643,32]
[326725272,1715284278977,-500.0,0.00041643,32]
[326725273,1715284278987,-556.71245081,0.00041643,32]
[326725274,1715284279001,-500.0,0.00041643,2]
[326725275,1715284279012,-500.0,0.00041643,32]
[326725276,1715284279022,-500.0,0.00041643,32]
[326725277,1715284279032,-1156.79,0.00041643,32]
[326725278,1715284279042,-1436.17,0.00041643,32]
[326725279,1715284279052,-500.0,0.00041643,32]
[326725280,1715284279061,-500.0,0.00041643,32]
[326725281,1715284279071,-500.0,0.00041643,32]
[326725282,1715284279081,-1718.75,0.00041643,2]
[326725283,1715284279091,-1341.58,0.00041643,32]
[326725284,1715284279100,-500.0,0.00041643,32]
[326725285,1715284279110,-500.0,0.00041643,32]
[326725286,1715284279119,-151.0,0.00041643,14]
[326725287,1715284279129,-151.0,0.00041643,14]
[326725288,1715284279140,-500.0,0.00041643,32]
[326725289,1715284279149,-500.0,0.00041643,32]
[326725290,1715284279159,-500.0,0.00041643,32]
[326725291,1715284279168,-500.0,0.00041643,32]
[326725292,1715284279177,-151.0,0.00041643,14]
[326725293,1715284279187,-500.0,0.00041643,32]
[326725294,1715284279196,-151.0,0.00041643,14]
[326725295,1715284279206,-500.0,0.00041643,32]
[326725296,1715284279216,-500.0,0.00041643,32]
[326725297,1715284279225,-505.56,0.00041643,32]
[326725298,1715284279235,-682.08,0.00041643,32]
[326725299,1715284279245,-1484.74,0.00041643,32]
[326725300,1715284279255,-500.0,0.00041643,32]
[326725301,1715284279264,-500.0,0.00041643,32]
[326725302,1715284279276,-1591.69,0.00041643,32]
[326725303,1715284279288,-1027.83,0.00041643,32]
[326725304,1715284279298,-500.0,0.00041643,32]
[326725305,1715284279309,-500.0,0.00041643,32]
[326725306,1715284279319,-500.0,0.00041643,32]
[326725307,1715284279331,-500.0,0.00041643,32]
[326725308,1715284279341,-1504.46,0.00041643,32]
[326725309,1715284279351,-500.0,0.00041643,32]
[326725310,1715284279360,-505.9,0.00041643,32]
[326725311,1715284279370,-500.0,0.00041643,32]
[326725312,1715284279379,-500.0,0.00041643,32]
[326725313,1715284279389,-1137.35,0.00041643,32]
[326725314,1715284279399,-500.0,0.00041643,32]
[326725315,1715284279408,-500.0,0.00041643,32]
[326725316,1715284279418,-500.0,0.00041643,32]
[326725317,1715284279427,-500.0,0.00041643,32]
[326725318,1715284279436,-500.0,0.00041643,32]
[326725319,1715284279446,-500.0,0.00041643,32]
[326725320,1715284279455,-655.89,0.00041643,32]
[326725321,1715284279465,-500.0,0.00041643,32]
[326725322,1715284279474,-500.0,0.00041643,32]
[326725323,1715284279484,-713.18,0.00041643,32]
[326725324,1715284279493,-500.0,0.00041643,32]
[326725325,1715284279503,-500.0,0.00041643,32]
[326725326,1715284279513,-1364.43,0.00041643,32]
[326725327,1715284279522,-785.55,0.00041643,32]
[326725328,1715284279532,-231.00185237,0.00041643,32]
[326725329,1715284279541,-500.0,0.00041643,32]
[326725330,1715284279550,-951.2,0.00041643,32]
[326725331,1715284279560,-1046.03,0.00041643,32]
[326725332,1715284279570,-1367.07,0.00041643,32]
[326725333,1715284279579,-525.07289037,0.00041643,32]
[326725334,1715284279588,-500.0,0.00041643,32]
[326725335,1715284279598,-539.58,0.00041643,32]
[326725336,1715284279607,-500.0,0.00041643,32]
[326725337,1715284279617,-500.0,0.00041643,32]
[326725338,1715284279627,-2348.24,0.00041643,32]
[326725339,1715284279636,-500.0,0.00041643,32]
[326725340,1715284279646,-500.0,0.00041643,32]
[326725341,1715284279655,-500.0,0.00041643,32]
[326725342,1715284279665,-500.0,0.00041643,32]
[326725343,1715284279675,-874.78,0.00041643,32]
[326725344,1715284279684,-500.0,0.00041643,32]
[326725345,1715284279694,-500.0,0.00041643,32]
[326725346,1715284279704,-500.0,0.00041643,32]
[326725347,1715284279713,-500.0,0.00041643,32]
[326725348,1715284279723,-2074.59,0.00041643,32]
[326725349,1715284279733,-500.0,0.00041643,32]
[326725350,1715284279742,-500.0,0.00041643,32]
[326725351,1715284279751,-500.0,0.00041643,32]
[326725352,1715284279760,-1325.71,0.00041643,32]
[326725353,1715284279770,-505.75,0.00041643,32]
[326725354,1715284279779,-2743.04,0.00041643,32]
[326725355,1715284279788,-500.0,0.00041643,32]
[326725356,1715284279798,-500.0,0.00041643,32]
[326725357,1715284279807,-540.84,0.00041643,32]
[326725358,1715284279817,-500.0,0.00041643,32]
[326725359,1715284279826,-2144.61,0.00041643,32]
[326725360,1715284279835,-860.41,0.00041643,32]
[326725361,1715284279845,-500.0,0.00041643,32]
[326725362,1715284279854,-1751.55,0.00041643,32]
[326725363,1715284279863,-1207.84,0.00041643,32]
[326725364,1715284279873,-684.16,0.00041643,32]
[326725365,1715284279882,-500.0,0.00041643,32]
[326725366,1715284279892,-500.0,0.00041643,32]
[326725367,1715284279902,-500.0,0.00041643,32]
[326725368,1715284279911,-500.0,0.00041643,32]
[326725369,1715284279925,-1054.07,0.00041643,32]
[326725370,1715284279935,-842.02,0.00041643,32]
[326725371,1715284279944,-576.56,0.00041643,32]
[326725372,1715284279955,-500.0,0.00041643,32]
[326725373,1715284279964,-500.0,0.00041643,32]
[326725374,1715284279974,-2095.12,0.00041643,32]
[326725375,1715284279983,-500.0,0.00041643,32]
[326725376,1715284279994,-500.0,0.00041643,32]
[326725377,1715284280004,-500.0,0.00041643,32]
[326725378,1715284280015,-559.15,0.00041643,32]
[326725379,1715284280025,-793.28,0.00041643,32]
[326725380,1715284280039,-619.16213466,0.00041643,32]
[326725381,1715284280049,-170.15166824,0.00041643,32]
[326725382,1715284280058,-1297.79,0.00041643,32]
[326725383,1715284280068,-500.0,0.00041643,32]
[326725384,1715284280078,-642.91,0.00041643,32]
[326725385,1715284280088,-500.0,0.00041643,32]
[326725386,1715284280098,-1901.75,0.00041643,32]
[326725387,1715284280108,-591.14,0.00041643,32]
[326725388,1715284280118,-2628.98,0.00041643,32]
[326725389,1715284280128,-500.0,0.00041643,32]
[326725390,1715284280138,-500.0,0.00041643,32]
[326725391,1715284280147,-500.0,0.00041643,32]
[326725392,1715284280158,-500.0,0.00041643,32]
[326725393,1715284280167,-500.0,0.00041643,32]
[326725394,1715284280177,-500.0,0.00041643,32]
[326725395,1715284280187,-2000.0,0.00041643,32]
[326725396,1715284280197,-904.69,0.00041643,32]
[326725397,1715284280207,-500.0,0.00041643,32]
[326725398,1715284280216,-500.0,0.00041643,32]
[326725399,1715284280226,-500.0,0.00041643,32]
[326725400,1715284280236,-500.0,0.00041643,32]
[326725401,1715284280245,-1639.76,0.00041643,32]
[326725402,1715284280255,-564.54181319,0.00041643,32]
[326725403,1715284280265,-500.0,0.00041643,32]
[326725404,1715284280275,-938.7,0.00041643,32]
[326725405,1715284280285,-500.0,0.00041643,32]
[326725406,1715284280295,-1432.42,0.00041643,32]
[326725407,1715284280304,-500.0,0.00041643,32]
[326725408,1715284280314,-500.0,0.00041643,32]
[326725409,1715284280324,-500.0,0.00041643,32]
[326725410,1715284280334,-500.0,0.00041643,32]
[326725411,1715284280344,-500.0,0.00041643,32]
[326725412,1715284280354,-825.1,0.00041643,32]
[326725413,1715284280364,-500.0,0.00041643,32]
[326725414,1715284280374,-500.0,0.00041643,32]
[326725415,1715284280384,-500.0,0.00041643,32]
[326725416,1715284280404,-500.0,0.00041643,32]
[326725417,1715284280414,-733.8,0.00041643,32]
[326725418,1715284280425,-575.47519876,0.00041643,32]
[326725419,1715284280435,-500.0,0.00041643,32]
[326725420,1715284280446,-2380.09,0.00041643,32]
[326725421,1715284280459,-3126.22,0.00041643,30]
[326725422,1715284280469,-220.28728318,0.00041643,32]
[326725423,1715284280478,-523.81,0.00041643,32]
[326725424,1715284280488,-500.0,0.00041643,32]
[326725425,1715284280498,-500.0,0.00041643,32]
[326725426,1715284280507,-500.0,0.00041643,32]
[326725427,1715284280517,-686.09,0.00041643,32]
[326725428,1715284280526,-514.50697511,0.00041643,32]
[326725429,1715284280536,-500.0,0.00041643,32]
[326725430,1715284280546,-620.29,0.00041643,32]
[326725431,1715284280555,-863.55,0.00041643,32]
[326725432,1715284280565,-500.0,0.00041643,32]
[326725433,1715284280574,-500.0,0.00041643,32]
[326725434,1715284280584,-568.50832886,0.00041643,32]
[326725435,1715284280593,-947.5,0.00041643,32]
[326725436,1715284280604,-961.34,0.00041643,32]
[326725437,1715284280614,-873.21,0.00041643,32]
[326725438,1715284280623,-411.79340293,0.00041643,32]
[326725439,1715284280633,-367.03640643,0.00041643,32]
[326725440,1715284280645,-500.0,0.00041643,32]
[326725441,1715284280654,-500.0,0.00041643,32]